bitfinex-derivatives/quotes_ETHF0:USTF0_20260204
["timestamp","ask_amount","ask_price","bid_price","bid_amount"]
[1770211031543,0.48310471,2240.5,2239.0,8.753]
[1770211031544,0.48310471,2240.5,2239.4,0.46489544]
[1770211031739,0.48719989,2240.5,2239.4,0.46489544]
[1770211031941,0.48719989,2240.5,2239.2,8.752]
[1770211032137,0.48719989,2240.5,2239.2,9.21689544]
[1770211032550,0.48310471,2240.4,2239.3,0.46489544]
[1770211033748,0.48310471,2240.4,2239.0,0.044]
[1770211033749,0.48310471,2240.4,2239.0,0.46489544]
[1770211033942,0.48310471,2240.4,2239.3,8.749]
[1770211037037,0.48310471,2240.4,2239.2,9.21089544]
[1770211037946,0.48310471,2240.4,2239.3,0.46489544]
[1770211039145,0.48310471,2240.3,2239.3,0.46489544]
[1770211039346,0.48310471,2240.2,2239.0,0.46489544]
[1770211040750,0.48310471,2239.8,2238.7,0.46489544]
[1770211040945,0.2236,2239.6,2238.7,0.46489544]
[1770211041145,0.70670471,2239.6,2238.7,0.46489544]
[1770211041543,0.48310471,2239.5,2238.3,0.46489544]
[1770211041847,0.48310471,2239.3,2238.3,0.46489544]
[1770211042646,0.48310471,2239.2,2238.3,0.46489544]
[1770211043148,0.70674471,2239.2,2238.3,0.46489544]
[1770211043346,0.70674471,2239.2,2238.4,0.8934]
[1770211043847,0.49828758,2239.1,2238.4,0.8934]
[1770211044946,0.49828758,2238.7,2238.1,5.11e-06]
[1770211045146,3.32127067,2238.2,2237.1,0.48972877]
[1770211045345,0.49828758,2238.1,2237.1,0.48972877]
[1770211045649,0.49828758,2238.1,2236.5,0.2239]
[1770211045650,0.49828758,2238.0,2236.7,0.044]
[1770211045948,0.49828758,2237.9,2236.5,0.2679]
[1770211046149,0.50376751,2237.9,2236.5,0.272455]
[1770211046351,0.49828758,2237.7,2236.8,0.8941]
[1770211046650,0.49828758,2237.6,2236.5,0.004555]
[1770211047150,0.50376751,2237.9,2236.5,0.004555]
[1770211047348,0.00547993,2237.9,2236.5,0.004555]
[1770211047547,0.00547993,2237.9,2236.8,0.48972877]
[1770211048750,0.00547993,2237.9,2236.9,0.48972877]
[1770211050552,0.49828758,2238.5,2237.3,0.48972877]
[1770211050949,0.49828758,2238.5,2237.4,0.22381]
[1770211051153,0.49828758,2238.5,2237.5,0.48972877]
[1770211051355,0.49828758,2238.5,2237.2,0.48972877]
[1770211051554,0.49828758,2238.4,2237.2,0.48972877]
[1770211053254,0.49828758,2238.3,2237.2,0.48972877]
[1770211056361,0.49828758,2238.2,2237.2,0.48972877]
[1770211057056,0.49828758,2238.1,2237.2,0.48972877]
[1770211057262,0.49828758,2238.1,2236.9,0.22386]
[1770211057263,0.49828758,2238.0,2236.9,0.71358877]
[1770211057459,0.72204758,2238.0,2236.9,0.71358877]
[1770211057763,0.49828758,2237.6,2236.5,0.004555]
[1770211058058,0.72208758,2237.6,2236.5,0.004555]
[1770211058262,0.49828758,2237.3,2236.5,0.004555]
[1770211062665,0.49828758,2237.2,2236.5,0.004555]
[1770211062866,0.49828758,2236.9,2236.0,0.48972877]
[1770211063159,0.49828758,2236.8,2235.7,0.48972877]
[1770211063662,0.49828758,2236.7,2235.7,0.48972877]
[1770211063864,0.5026408,2236.7,2235.7,0.49445536]
[1770211064164,0.00435322,2236.7,2235.7,0.71843536]
[1770211064364,0.00435322,2236.7,2235.8,0.48972877]
[1770211065264,0.5026408,2236.7,2235.8,0.48972877]
[1770211066164,0.5026408,2236.7,2235.7,0.00472659]
[1770211066165,0.49828758,2236.4,2235.7,0.00472659]
[1770211068560,0.49828758,2236.3,2235.7,0.00472659]
[1770211069666,0.49828758,2236.6,2235.7,0.49445536]
[1770211072264,0.49828758,2236.6,2235.7,0.00472659]
[1770211072466,0.49828758,2236.6,2235.7,0.49445536]
[1770211073667,0.47178623,2236.4,2235.7,0.00472659]
[1770211073869,0.22393,2236.3,2235.7,0.00472659]
[1770211074064,0.22393,2236.3,2234.5,3.99937488]
[1770211074065,0.47178623,2236.2,2234.9,0.69521337]
[1770211074268,0.47178623,2236.0,2234.9,0.69521337]
[1770211074668,0.47178623,2235.8,2234.6,0.47114337]
[1770211075070,0.47178623,2235.8,2234.6,0.47557492]
[1770211079472,0.49784239,2235.4,2234.6,0.00443155]
[1770211080175,0.49784239,2235.2,2234.3,0.44755746]
[1770211080365,0.49784239,2235.1,2234.3,0.44755746]
[1770211080966,0.22408,2234.8,2233.7,0.48323391]
[1770211081171,0.00358813,2234.8,2233.9,0.48323391]
[1770211083369,0.49784239,2235.6,2234.3,0.48323391]
[1770211083575,0.49784239,2235.6,2234.5,0.48323391]
[1770211084373,0.50281292,2235.6,2234.5,0.48323391]
[1770211084572,0.00497053,2235.6,2234.7,0.48323391]
[1770211084873,0.00497053,2235.6,2234.9,0.48323391]
[1770211085673,0.72178239,2236.2,2234.9,0.48323391]
[1770211085874,0.49784239,2236.2,2234.9,0.48323391]
[1770211086377,0.49784239,2236.3,2235.0,0.48323391]
[1770211086575,0.49784239,2236.3,2235.1,0.48323391]
[1770211086772,0.50165647,2236.3,2235.1,0.48323391]
[1770211087079,0.49784239,2236.9,2235.5,0.48323391]
[1770211088176,0.50263431,2236.9,2235.5,0.48893242]
[1770211089478,0.50263431,2236.9,2235.6,0.48323391]
[1770211089882,0.50263431,2236.9,2235.8,0.48323391]
[1770211091080,0.50263431,2236.9,2235.7,0.8511]
[1770211091283,0.50263431,2236.9,2235.7,1.33433391]
[1770211092977,0.49784239,2236.8,2235.7,1.33433391]
[1770211093481,0.49784239,2236.8,2235.8,0.48323391]
[1770211096181,0.49784239,2236.7,2235.7,0.8511]
[1770211096982,0.49784239,2236.5,2235.7,1.33433391]
[1770211099391,0.49784239,2236.2,2235.7,0.8511]
[1770211099779,0.49784239,2236.2,2235.5,0.00569851]
[1770211100086,39.76295951,2236.3,2235.1,0.48323391]
[1770211100282,39.98687951,2236.4,2235.1,0.48323391]
[1770211100486,0.22392,2236.4,2235.1,0.48323391]
[1770211100888,0.22392,2236.4,2235.1,0.4874567]
[1770211101288,0.22392,2236.4,2235.3,0.48323391]
[1770211101483,0.72176239,2236.4,2235.3,0.48323391]
[1770211101689,0.49784239,2236.3,2235.3,0.48323391]
[1770211103288,0.22396,2236.0,2235.2,0.0436]
[1770211103590,0.72180239,2236.0,2235.2,0.0436]
[1770211103890,0.22396,2236.0,2235.2,0.54463456]
[1770211104586,39.76295951,2236.4,2235.2,0.54463456]
[1770211105681,40.26915021,2236.4,2235.2,0.54463456]
[1770211106085,0.22391,2236.5,2235.2,0.54463456]
[1770211106880,0.22391,2236.5,2235.2,0.76866456]
[1770211107081,0.22391,2236.5,2235.3,0.50103456]
[1770211107589,0.22391,2236.5,2235.4,0.50103456]
[1770211107785,40.26915021,2236.7,2235.4,0.50103456]
[1770211107990,40.26915021,2236.7,2235.5,0.50103456]
[1770211108691,0.5061907,2236.4,2235.5,0.50103456]
[1770211109591,0.22391,2236.5,2235.5,0.50103456]
[1770211111090,0.00479192,2236.9,2235.8,1.03028]
[1770211111299,0.5099105,2237.7,2236.5,0.2239]
[1770211111591,0.5099105,2237.7,2236.6,0.2679]
[1770211111790,0.5099105,2237.7,2236.2,2.65445321]
[1770211112086,0.5099105,2237.6,2236.1,2.87839321]
[1770211112292,0.5099105,2237.6,2236.3,0.26792]
[1770211112686,0.5099105,2237.4,2236.3,0.26792]
[1770211114694,0.5099105,2237.4,2236.3,0.22392]
[1770211114886,0.51142974,2237.0,2235.7,2.65445321]
[1770211115092,0.51142974,2236.8,2235.4,2.87846321]
[1770211115294,0.22389,2236.7,2235.4,2.65445321]
[1770211115493,0.51142974,2236.6,2235.4,0.22401]
[1770211115700,0.51142974,2237.1,2235.6,3.68483321]
[1770211115892,0.51142974,2237.1,2236.0,0.22395]
[1770211117398,0.51209881,2236.9,2236.0,0.22395]
[1770211119991,0.00479192,2236.7,2236.0,0.22395]
[1770211120201,0.51118152,2236.6,2236.0,0.22395]
[1770211120399,0.51597344,2236.6,2236.0,0.22395]
[1770211120703,0.51586094,2236.5,2235.5,2.92245321]
[1770211120897,0.51106902,2236.5,2235.5,2.92245321]
[1770211121699,0.51106902,2236.5,2235.5,2.87845321]
[1770211121896,0.51106902,2236.5,2235.5,2.92245321]
[1770211124200,0.51106902,2236.5,2235.5,0.224]
[1770211124398,0.50987696,2236.3,2235.5,0.224]
[1770211124599,0.50987696,2236.3,2235.2,2.65445321]
[1770211124798,0.51098262,2236.2,2235.2,0.00993244]
[1770211125097,0.5061907,2236.2,2235.2,0.23396244]
[1770211125298,0.51098262,2236.2,2235.2,0.23396244]
[1770211125496,0.51098262,2236.0,2235.2,0.22403]
[1770211125702,0.51072963,2236.0,2235.2,0.22403]
[1770211125897,0.00479192,2235.9,2235.2,0.22403]
[1770211126196,0.51098262,2235.7,2235.2,0.22403]
[1770211126601,0.00479192,2235.6,2235.2,0.22403]
[1770211126904,0.00453893,2236.0,2235.2,0.23396244]
[1770211127500,0.5128875,2236.0,2235.2,0.22403]
[1770211129604,0.5128875,2236.0,2235.1,0.00422279]
[1770211130104,0.50724162,2235.9,2235.1,0.00422279]
[1770211138011,0.51635319,2235.7,2235.1,0.00422279]
[1770211138214,0.51635319,2235.7,2234.4,2.89428325]
[1770211138415,0.51635319,2235.2,2234.3,0.44755746]
[1770211139312,0.51635319,2235.2,2234.3,0.45293503]
[1770211141017,0.51635319,2235.2,2234.5,0.2241]
[1770211143824,0.51635319,2235.2,2234.3,0.45293503]
[1770211152022,0.54053774,2235.4,2234.5,0.22408]
[1770211152223,0.54053774,2235.4,2234.6,0.22407]
[1770211152424,39.73422949,2235.8,2235.1,0.68555395]
[1770211152622,39.73422949,2236.3,2235.1,0.68555395]
[1770211152822,39.73422949,2236.3,2235.2,0.46153395]
[1770211153022,39.73422949,2236.3,2235.2,0.68554395]
[1770211153225,39.95810949,2236.5,2235.3,0.46153395]
[1770211153727,39.96131997,2236.5,2235.2,0.22401]
[1770211154124,0.2239,2236.4,2235.2,0.22401]
[1770211154328,0.49166836,2236.3,2235.2,0.22401]
[1770211154528,0.49166836,2236.3,2235.2,0.68554395]
[1770211154719,0.49166836,2236.3,2235.3,0.46153395]
[1770211154925,0.49166836,2236.3,2235.2,0.22401]
[1770211156228,0.49166836,2236.3,2235.2,0.68554395]
[1770211156433,0.49166836,2236.3,2235.4,0.46153395]
[1770211156830,0.00321048,2236.5,2235.7,0.46153395]
[1770211157031,39.73422949,2236.9,2235.9,0.46153395]
[1770211157224,39.73422949,2237.0,2235.9,0.46153395]
[1770211157432,0.22386,2236.8,2235.5,2.67017325]
[1770211157631,39.73422949,2236.7,2235.4,0.46153395]
[1770211157830,39.73422949,2236.7,2235.0,3.1757072]
[1770211157831,39.95812949,2236.4,2235.0,3.1757072]
[1770211158030,39.96172733,2236.4,2235.1,0.46153395]
[1770211158428,39.95814949,2236.2,2235.0,0.00348939]
[1770211158629,39.73422949,2236.1,2235.0,0.00348939]
[1770211158829,0.49166836,2236.0,2235.0,0.00348939]
[1770211159531,0.49166836,2236.0,2235.0,0.46502334]
[1770211159832,0.49166836,2236.3,2235.4,0.46153395]
[1770211161633,0.49166836,2236.3,2235.3,0.68552395]
[1770211162331,0.49166836,2236.3,2235.5,0.46153395]
[1770211162527,0.00359784,2236.4,2235.5,0.46153395]
[1770211164034,0.00359784,2236.4,2235.5,0.68551395]
[1770211164228,0.00359784,2236.4,2235.6,0.46579336]
[1770211165035,0.46693521,2236.9,2235.9,0.46579336]
[1770211165535,0.46693521,2236.8,2235.6,0.50979336]
[1770211165731,0.46693521,2236.8,2235.7,0.46579336]
[1770211165933,0.4725065,2236.8,2235.7,0.46579336]
[1770211167434,0.46693521,2236.7,2235.6,0.22397]
[1770211167634,0.46693521,2236.6,2235.4,0.46579336]
[1770211167936,0.46693521,2236.5,2235.4,0.46579336]
[1770211168641,0.46693521,2236.1,2235.0,0.46928275]
[1770211169439,0.46693521,2235.7,2235.0,0.00348939]
[1770211170038,0.46693521,2235.6,2234.5,0.46579336]
[1770211170236,0.46693521,2235.6,2234.3,0.44755746]
[1770211170539,0.46693521,2235.6,2234.3,0.91335082]
[1770211170740,0.46693521,2235.5,2234.3,0.91335082]
[1770211170935,0.46693521,2235.0,2234.3,0.44755746]
[1770211171234,0.47053353,2235.0,2234.3,0.45217469]
[1770211171639,0.47053353,2235.0,2233.8,0.22415]
[1770211172231,0.47053353,2235.0,2233.7,0.46579336]
[1770211172431,0.46693521,2234.9,2233.7,0.46579336]
[1770211172632,0.46693521,2234.7,2233.7,0.00528145]
[1770211173743,0.46693521,2234.6,2233.7,0.00528145]
[1770211174238,0.46693521,2234.6,2233.1,0.69001336]
[1770211174436,0.46693521,2234.6,2233.2,0.46579336]
[1770211175038,0.46693521,2234.4,2233.2,0.46579336]
[1770211175237,0.46693521,2234.3,2233.2,0.46906107]
[1770211175835,0.46693521,2234.0,2232.9,0.46579336]
[1770211177032,0.46693521,2234.0,2232.9,0.47012665]
[1770211177232,0.46693521,2234.6,2233.1,0.22422]
[1770211177442,0.46693521,2234.5,2233.2,0.46579336]
[1770211177641,0.46693521,2234.4,2233.2,0.46579336]
[1770211177839,0.46693521,2234.1,2232.9,0.47012665]
[1770211179932,0.46693521,2233.9,2232.9,0.47012665]
[1770211180942,0.22414,2234.0,2232.9,0.47012665]
[1770211181142,0.69107521,2234.0,2232.9,0.47012665]
[1770211181843,0.46693521,2234.0,2232.9,0.47012665]
[1770211187347,0.46693521,2233.9,2232.9,0.47012665]
[1770211187544,0.46693521,2233.7,2232.6,0.46579336]
[1770211187843,0.2681,2234.4,2232.6,0.46579336]
[1770211188049,0.46693521,2234.3,2232.6,0.46579336]
[1770211188245,0.46693521,2234.2,2232.6,0.46579336]
[1770211188441,0.69105521,2234.2,2232.7,0.46579336]
[1770211188748,0.46693521,2234.1,2232.7,0.47043328]
[1770211190948,0.46693521,2234.0,2232.7,0.47043328]
[1770211191849,0.46693521,2233.6,2232.7,0.47043328]
[1770211192054,0.46693521,2233.6,2232.7,0.00463992]
[1770211192447,0.46693521,2233.6,2232.7,0.47043328]
[1770211195554,0.46693521,2233.6,2232.7,0.00463992]
[1770211195748,0.46693521,2233.6,2232.7,0.4814667]
[1770211197155,0.46693521,2233.6,2232.7,0.00463992]
[1770211197756,0.46693521,2233.6,2232.7,0.50913251]
[1770211198257,0.47077695,2233.5,2232.7,0.00463992]
[1770211198558,0.47077695,2233.5,2232.7,0.50913251]
[1770211199654,0.47077695,2233.4,2232.7,0.00463992]
[1770211199859,0.47633906,2233.4,2232.7,0.00463992]
[1770211200558,0.47077695,2233.2,2232.1,0.50449259]
[1770211200958,0.22421,2233.3,2232.2,0.50449259]
[1770211201454,0.00556211,2233.4,2232.3,0.50449259]
[1770211201654,0.00556211,2233.4,2232.4,0.50449259]
[1770211201958,0.47077695,2233.7,2232.5,0.50449259]
[1770211202158,40.20500644,2233.7,2232.5,0.50449259]
[1770211202461,0.47077695,2233.6,2232.5,0.50449259]
[1770211202860,0.47545784,2233.6,2232.5,0.50449259]
[1770211203355,0.00468089,2233.6,2232.5,3.38621203]
[1770211203560,0.00468089,2233.6,2232.8,0.50449259]
[1770211203950,0.47545784,2233.6,2232.8,0.50449259]
[1770211204356,0.00468089,2233.6,2232.8,0.50449259]
[1770211205160,39.73422949,2233.9,2232.9,0.72873259]
[1770211205360,39.73422949,2233.9,2233.1,0.50449259]
[1770211205361,0.32999846,2233.9,2233.1,0.50449259]
[1770211205661,39.73422949,2234.0,2233.1,0.50449259]
[1770211206154,39.73422949,2234.1,2233.1,0.50449259]
[1770211206353,0.00423241,2234.0,2233.1,0.50449259]
[1770211206557,0.00423241,2234.0,2233.2,0.50449259]
[1770211207261,39.73422949,2234.2,2233.2,0.50449259]
[1770211207262,39.73422949,2234.6,2233.5,0.50449259]
[1770211207457,40.20500644,2234.6,2233.5,0.50449259]
[1770211207663,0.47077695,2234.5,2233.5,0.50449259]
[1770211207856,0.47077695,2234.5,2232.6,12.44950014]
[1770211207857,0.69493695,2233.8,2233.0,0.50449259]
[1770211208063,0.47077695,2233.5,2232.6,0.50449259]
[1770211208262,40.20500644,2233.9,2232.6,0.50449259]
[1770211208458,0.00408573,2233.5,2232.6,0.72876259]
[1770211208658,0.00408573,2233.5,2232.7,0.50449259]
[1770211209064,0.00408573,2233.5,2232.8,0.50449259]
[1770211211060,0.00408573,2233.5,2232.7,0.8957]
[1770211211061,0.47486268,2233.5,2232.7,0.8957]
[1770211211263,0.47077695,2233.3,2232.3,0.50449259]
[1770211212062,0.47077695,2233.3,2231.7,6.67360187]
[1770211212063,0.47077695,2232.8,2231.4,4.91426713]
[1770211212267,0.47077695,2232.8,2230.6,22.708059]
[1770211212268,0.47077695,2232.1,2230.7,0.50449259]
[1770211212566,40.25669789,2231.8,2231.0,0.50449259]
[1770211212758,39.78592094,2231.6,2231.0,0.50449259]
[1770211212962,39.78592094,2231.7,2231.1,5.331734]
[1770211213163,0.47077695,2231.8,2231.1,5.331734]
[1770211213362,0.47077695,2231.8,2231.1,5.33648557]
[1770211213559,0.47077695,2231.7,2230.6,0.044]
[1770211213760,0.47077695,2231.5,2230.7,5.331734]
[1770211214068,0.47077695,2231.5,2230.5,0.50449259]
[1770211214369,0.47077695,2231.5,2230.7,0.50449259]
[1770211214776,0.47077695,2231.5,2230.8,5.331734]
[1770211215071,0.47077695,2231.8,2230.9,13.00103311]
[1770211215270,0.47646091,2231.8,2230.9,0.00509652]
[1770211215473,0.47077695,2231.7,2230.9,3.35552044]
[1770211215672,0.47077695,2231.5,2230.3,0.50449259]
[1770211215973,0.47077695,2231.3,2230.0,2.07501679]
[1770211216180,0.47077695,2231.3,2229.6,1.82501679]
[1770211216181,0.22445,2230.9,2229.6,1.82501679]
[1770211216369,0.22447,2230.7,2229.1,1.82501679]
[1770211216776,0.35450304,2230.6,2229.1,1.82926031]
[1770211217178,0.22451,2230.3,2229.1,1.82926031]
[1770211217377,0.35450304,2230.2,2229.1,1.82926031]
[1770211217582,0.35970594,2230.2,2229.1,1.82926031]
[1770211218070,0.35970594,2230.2,2229.2,1.79914982]
[1770211218269,0.35970594,2230.2,2229.1,14.29993386]
[1770211218470,0.0052029,2230.2,2229.2,1.79914982]
[1770211218667,0.4201896,2230.7,2229.7,1.79914982]
[1770211218871,40.8,2230.8,2229.1,0.22886352]
[1770211218872,0.2419906,2230.5,2229.4,1.91938364]
[1770211219376,0.2419906,2230.2,2229.1,1.92362716]
[1770211219576,0.24553611,2230.2,2229.1,1.92362716]
[1770211220080,0.00354551,2230.2,2229.3,1.91972704]
[1770211220574,0.30242944,2230.5,2229.5,1.91972704]
[1770211220973,0.38208491,2231.1,2229.6,1.91019829]
[1770211221176,0.38208491,2231.1,2230.1,1.91019829]
[1770211221476,41.18208491,2231.1,2230.1,1.91019829]
[1770211221678,0.38711821,2231.1,2229.5,1.91019829]
[1770211221869,0.38711821,2231.1,2229.6,1.91039308]
[1770211222075,0.44127477,2230.7,2229.6,1.91039308]
[1770211222574,0.22446,2230.8,2229.7,1.91039308]
[1770211222875,0.47077695,2230.9,2229.8,1.91039308]
[1770211223673,0.2294633,2231.1,2230.0,2.10188426]
[1770211224080,0.2294633,2231.1,2230.1,2.10188426]
[1770211224377,0.0050333,2231.1,2230.1,2.10188426]
[1770211224679,0.0050333,2231.1,2230.4,2.10188426]
[1770211225082,0.0050333,2231.1,2230.5,14.59842478]
[1770211225278,0.69492489,2230.9,2229.5,2.10188426]
[1770211225582,0.22447,2230.7,2229.5,2.10188426]
[1770211225977,0.22447,2230.7,2229.6,2.10188426]
[1770211226471,0.0050333,2231.1,2229.7,2.10188426]
[1770211226878,0.0050333,2231.1,2230.1,2.10188426]
[1770211227278,0.0050333,2231.1,2230.3,2.10188426]
[1770211227675,0.0050333,2231.1,2230.4,12.49654052]
[1770211227879,0.0050333,2231.1,2230.5,2.10188426]
[1770211228181,0.0050333,2231.1,2230.5,14.59842478]
[1770211228482,0.92079585,2231.1,2229.5,2.14588426]
[1770211228680,0.92079585,2231.1,2230.0,2.10188426]
[1770211228877,0.2294633,2231.1,2230.0,2.10188426]
[1770211229077,0.2294633,2231.1,2230.1,2.10188426]
[1770211229478,0.0050333,2231.1,2230.2,14.59842478]
[1770211229680,0.0050333,2231.1,2230.2,2.10188426]
[1770211229881,0.0050333,2231.1,2230.4,2.10188426]
[1770211230082,1.02041786,2231.1,2229.9,14.59842478]
[1770211230381,1.24484786,2231.1,2230.0,2.10188426]
[1770211230779,0.2294633,2231.1,2230.1,2.10188426]
[1770211230974,0.2294633,2231.1,2229.7,0.22456]
[1770211230975,0.2294633,2231.1,2230.3,2.10188426]
[1770211231180,0.0050333,2231.1,2230.3,2.10188426]
[1770211231482,0.0050333,2231.1,2230.5,2.10188426]
[1770211231683,1.07874845,2231.2,2230.0,2.10188426]
[1770211231883,0.22443,2231.1,2230.0,2.10188426]
[1770211232283,0.22443,2231.1,2230.1,2.10188426]
[1770211232480,0.22444,2231.0,2230.1,2.10188426]
[1770211232785,1.35561309,2230.9,2229.6,2.10188426]
[1770211232983,1.35561309,2230.9,2229.7,2.10188426]
[1770211233281,1.35561309,2230.9,2229.8,2.10188426]
[1770211233477,0.0040947,2231.0,2229.8,2.10188426]
[1770211233674,0.0040947,2231.0,2230.3,2.10188426]
[1770211233885,0.0040947,2231.0,2230.4,12.49654052]
[1770211234279,0.0040947,2231.0,2230.1,2.10188426]
[1770211234486,1.54092508,2231.0,2230.1,2.10188426]
[1770211234786,0.2285347,2231.0,2230.3,2.10188426]
[1770211235286,0.2285347,2231.0,2230.3,14.59842478]
[1770211236187,0.22445,2230.9,2230.0,2.10188426]
[1770211236688,0.22445,2230.9,2230.2,2.10188426]
[1770211237081,0.0040947,2231.0,2230.5,12.49654052]
[1770211237389,0.044,2231.3,2230.6,2.10188426]
[1770211238286,0.04927939,2231.3,2230.6,2.10188426]
[1770211239184,0.04927939,2231.3,2230.7,12.49654052]
[1770211239383,0.04927939,2231.3,2230.7,14.16537659]
[1770211239585,0.04927939,2231.3,2230.9,2.10188426]
[1770211239781,0.04927939,2231.3,2230.9,1.51821785]
[1770211239988,0.00527939,2231.3,2231.1,12.0587879]
[1770211240286,0.00527939,2231.3,2231.0,12.0587879]
[1770211240684,0.00527939,2231.3,2231.1,12.0587879]
[1770211240889,0.00527939,2231.3,2231.0,12.0587879]
[1770211241087,39.78592094,2231.5,2231.0,12.0587879]
[1770211241385,39.78592094,2231.7,2231.1,12.0587879]
[1770211241688,39.78592094,2231.7,2230.9,2.10188426]
[1770211241888,39.78592094,2231.7,2231.0,2.10188426]
[1770211242081,39.78592094,2231.6,2231.1,2.10188426]
[1770211242393,39.78930002,2231.7,2231.2,2.10188426]
[1770211242681,39.78930002,2231.7,2231.2,12.0587879]
[1770211243588,42.09173506,2231.7,2230.9,2.10188426]
[1770211243793,39.78592094,2231.6,2230.9,14.16067216]
[1770211244286,39.78592094,2231.6,2231.0,12.0587879]
[1770211244685,39.78592094,2231.6,2231.1,12.0587879]
[1770211244892,39.78592094,2231.6,2231.0,12.0587879]
[1770211245085,39.78592094,2231.6,2231.2,2.10188426]
[1770211245286,39.78592094,2231.6,2231.0,14.16067216]
[1770211245585,39.78592094,2231.6,2231.0,2.10188426]
[1770211245790,39.78592094,2231.6,2231.1,11.4085719]
[1770211246985,39.78592094,2231.6,2231.1,2.10188426]
[1770211247189,39.78592094,2231.6,2231.2,13.51045616]
[1770211247485,39.78592094,2231.6,2231.2,2.10188426]
[1770211247691,40.01367002,2231.7,2231.3,2.10188426]
[1770211247991,40.01367002,2231.7,2231.3,13.51045616]
[1770211248192,39.78592094,2231.6,2231.4,11.4085719]
[1770211248687,31.99709134,2231.7,2231.6,11.4085719]
[1770211248892,2.77265445,2232.0,2231.6,11.4085719]
[1770211249092,2.77265445,2232.0,2231.0,0.61994511]
[1770211249291,2.77265445,2232.0,2231.3,11.4085719]
[1770211249593,2.77265445,2232.0,2231.5,11.4085719]
[1770211249790,2.7777172,2232.0,2231.1,11.4085719]
[1770211249990,2.78051499,2231.8,2230.9,11.4085719]
[1770211250191,3.00487499,2231.8,2230.9,11.4085719]
[1770211250391,3.00487499,2231.8,2231.2,11.4085719]
[1770211250591,3.00487499,2231.8,2231.1,11.4085719]
[1770211250786,3.00487499,2231.8,2231.0,11.4085719]
[1770211251190,3.00487499,2231.8,2231.2,11.4085719]
[1770211251386,5.25842271,2231.9,2230.7,1.14990032]
[1770211251387,2.80797672,2231.1,2230.7,4.43e-06]
[1770211251591,2.80797672,2231.1,2229.8,1.17862415]
[1770211251884,2.80797672,2231.1,2230.2,11.4085719]
[1770211252286,2.80797672,2231.1,2230.4,11.4085719]
[1770211252492,2.80958555,2230.9,2230.4,0.00345302]
[1770211252892,2.80958555,2230.9,2230.6,11.4085719]
[1770211253395,2.80958555,2230.9,2230.5,10.3345719]
[1770211253594,2.80958555,2230.9,2230.6,10.3345719]
[1770211254093,2.80958555,2230.9,2230.5,10.3345719]
[1770211254291,3.26981017,2230.7,2229.4,0.20624614]
[1770211254592,3.26981017,2230.7,2229.4,10.54081804]
[1770211254794,3.26981017,2230.7,2229.8,10.3345719]
[1770211255295,3.26981017,2230.7,2230.0,10.3345719]
[1770211255492,3.26981017,2230.5,2229.8,0.00394332]
[1770211255698,3.26981017,2230.3,2229.9,10.3345719]
[1770211255896,3.27471061,2230.3,2230.0,10.3345719]
[1770211256194,3.27471061,2230.3,2230.2,10.3345719]
[1770211256396,5.48289271,2230.7,2230.2,10.3345719]
[1770211256599,5.25842271,2231.1,2229.8,0.00394332]
[1770211256794,5.48284271,2231.2,2230.2,10.3345719]
[1770211257294,46.28284271,2231.2,2230.4,10.3345719]
[1770211257490,5.48757598,2231.2,2230.2,10.3345719]
[1770211257797,0.22445,2230.9,2230.0,10.3345719]
[1770211257990,0.22451,2230.3,2229.8,1.62706055]
[1770211258191,1.03283,2230.1,2229.0,0.22196456]
[1770211258396,1.03283,2230.1,2228.3,0.44876254]
[1770211258397,0.22459,2229.5,2228.5,0.5099528]
[1770211258597,0.22454,2230.0,2228.8,0.89884794]
[1770211258896,0.22457,2229.7,2228.5,0.51995326]
[1770211259095,1.03831967,2229.7,2228.5,0.52538229]
[1770211259291,0.22461,2229.3,2228.5,0.52538229]
[1770211259495,0.22461,2229.3,2228.7,0.51995326]
[1770211259696,0.22461,2229.3,2228.9,0.51995326]
[1770211259897,0.00528967,2229.7,2228.9,1.4188012]
[1770211260097,0.00528967,2229.7,2229.3,0.51995326]
[1770211260293,0.00528967,2229.7,2229.6,0.89884794]
[1770211260503,0.64261933,2230.2,2229.5,0.43375794]
[1770211260792,0.22444,2231.0,2230.1,0.43375794]
[1770211260993,5.90048893,2231.5,2229.8,0.43375794]
[1770211261194,0.22442,2231.2,2229.5,0.22458]
[1770211261398,0.22787091,2231.2,2230.1,0.43375794]
[1770211261895,0.22787091,2231.2,2230.4,0.43375794]
[1770211262091,0.22787091,2231.2,2230.1,0.43375794]
[1770211262298,0.00345091,2231.2,2230.3,0.48255558]
[1770211262496,5.29188964,2231.9,2231.1,0.48255558]
[1770211262701,5.90385984,2232.3,2231.1,0.48255558]
[1770211262898,0.6119702,2232.3,2231.2,0.48255558]
[1770211263394,0.63249478,2232.2,2231.2,0.48255558]
[1770211263594,0.63249478,2232.2,2230.0,2.61680211]
[1770211263595,0.22442,2231.2,2230.5,0.48255558]
[1770211263798,0.40817478,2231.5,2230.5,0.48255558]
[1770211263991,0.40817478,2231.5,2230.6,0.43375794]
[1770211264190,0.22439,2231.5,2230.7,0.48255558]
[1770211264498,6.65886205,2231.9,2231.0,0.48255558]
[1770211264499,0.044,2231.9,2231.0,0.48255558]
[1770211264694,0.22436,2231.8,2230.8,0.43375794]
[1770211264893,0.22441,2231.3,2229.6,4.02089155]
[1770211265092,0.22441,2231.3,2230.0,0.43375794]
[1770211265296,0.22441,2231.3,2230.3,0.43375794]
[1770211265493,0.22441,2231.3,2230.2,0.43375794]
[1770211265701,5.79413463,2231.7,2230.6,0.43375794]
[1770211265897,0.50224499,2231.5,2230.6,0.00428355]
[1770211266100,0.50224499,2231.4,2230.6,0.00428355]
[1770211266399,0.50224499,2231.4,2230.6,0.43804149]
[1770211266598,1.03251,2230.8,2229.3,4.02089155]
[1770211266799,0.68568621,2230.6,2228.6,0.26867]
[1770211266996,5.29188964,2230.9,2228.9,0.48255558]
[1770211267205,5.97333842,2231.2,2229.3,0.48255558]
[1770211267397,5.97333842,2231.2,2229.5,0.48255558]
[1770211267599,0.22774338,2231.2,2229.7,0.48255558]
[1770211269701,0.22774338,2231.2,2229.9,0.48255558]
[1770211272304,0.22443,2231.1,2229.9,0.48255558]
[1770211273508,0.22444,2231.0,2229.9,0.48255558]
[1770211274905,0.00332338,2231.2,2229.9,0.48255558]
[1770211275810,0.22443,2231.1,2229.9,0.48255558]
[1770211276104,0.00332338,2231.2,2230.1,0.48255558]
[1770211276611,5.29188964,2231.8,2230.2,0.70706558]
[1770211276909,5.51624964,2231.8,2230.3,0.48255558]
[1770211277509,5.51987192,2231.8,2230.3,0.48255558]
[1770211277906,0.22798228,2231.8,2230.3,0.48255558]
[1770211278311,0.22438,2231.6,2230.3,0.48255558]
[1770211278910,0.2244,2231.4,2230.3,0.48255558]
[1770211279707,39.7988614,2231.8,2230.3,0.48255558]
[1770211280210,40.0232114,2231.8,2230.3,0.48255558]
[1770211282514,40.0232114,2231.8,2230.3,0.70705558]
[1770211282809,0.00362228,2231.8,2230.7,0.48255558]
[1770211283014,0.00362228,2231.8,2230.8,0.48255558]